[Event "22nd Trieste Masters Open 2020"]
[Site "Trieste"]
[Date "2020.09.01"]
[Round "5.5"]
[White "Jovanic, Ognjen"]
[Black "Sepehrkhoui, Ardeshir"]
[Result "1-0"]
[ECO "E11"]
[WhiteElo "2526"]
[BlackElo "2237"]
[Annotator "RC"]
[PlyCount "89"]
[EventDate "2020.08.31"]
[EventType "swiss"]
[EventCountry "ITA"]
[SourceTitle "playchess.com"]
[Source "ChessBase"]
[SourceQuality "1"]
[TimeControl "5400+30"]

1. d4 {[%emt 0:00:00]} Nf6 {[%emt 0:00:00]} 2. c4 {[%emt 0:00:24]} e6 {[%emt 0:00:00]} 3. Nf3 {[%emt 0:00:25]} Bb4+ {[%emt 0:00:00]} 4. Bd2 {[%emt 0:01:22]} a5 {[%emt 0:00:02]} 5. a3 {[%emt 0:00:54]} Bxd2+ {[%emt 0:00:37]} 6. Qxd2 {[%emt 0:00:18]} d6 {[%emt 0:02:36]} 7. Nc3 {[%emt 0:00:14]} Nbd7 {[%emt 0:00:06]} 8. e4 {[%emt 0:04:09]} e5 {[%emt 0:02:12]} 9. Be2 {[%emt 0:00:32]} O-O {[%emt 0:00:53]} 10. O-O {[%emt 0:00:26]} exd4 {[%emt 0:17:51]} 11. Nxd4 {[%emt 0:00:18]} Nc5 {[%emt 0:00:24]} 12. f3 {[%emt 0:01:12]} a4 {[%emt 0:01:16]} 13. Rad1 {[%emt 0:01:41]} Re8 {[%emt 0:01:21]} 14. Rfe1 {[%emt 0:00:33]} h6 {[%emt 0:01:48]} 15. Bf1 {[%emt 0:01:39]} Bd7 {[%emt 0:00:12]} 16. Qf2 {[%emt 0:01:12]} Qe7 {[%emt 0:01:17]} 17. Nc2 {[%emt 0:02:46]} Nb3 {[%emt 0:16:56]} 18. Nb4 {[%emt 0:06:26]} Be6 {[%emt 0:01:22]} 19. Nbd5 {[%emt 0:06:23]} Bxd5 {[%emt 0:01:13]} 20. cxd5 {[%emt 0:00:04]} c6 {[%emt 0:01:51]} 21. Bc4 {[%emt 0:01:18]} Nc5 {[%emt 0:00:51]} 22. Re2 {[%emt 0:01:23]} Red8 {[%emt 0:05:46]} 23. Red2 {[%emt 0:01:02]} Qe5 {[%emt 0:01:42]} 24. Rd4 {[%emt 0:02:59]} Ne8 {[%emt 0:05:20]} 25. Ba2 {[%emt 0:08:40]} Ra5 {[%emt 0:02:17]} 26. Qc2 {[%emt 0:02:45]} Rda8 {[%emt 0:00:36]} 27. Rb4 {[%emt 0:02:36]} Nc7 {[%emt 0:01:45]} 28. Qd2 {[%emt 0:02:14]} Ne8 {[%emt 0:01:49]} 29. Qf2 {[%emt 0:01:40]} Nc7 {[%emt 0:07:07]} 30. Rd2 {[%emt 0:02:53]} R5a7 {[%emt 0:03:05]} 31. f4 {[%emt 0:06:24]} Qf6 {[%emt 0:00:10]} 32. dxc6 {[%emt 0:02:57]} bxc6 {[%emt 0:00:41]} 33. Rb6 {[%emt 0:04:44]} Nb5 {[%emt 0:07:54]} 34. e5 {[%emt 0:10:36]} Qd8 {[%emt 0:00:46]} 35. Nxb5 {[%emt 0:00:34]} Qxb6 {[%emt 0:04:38]} 36. Nxa7 {[%emt 0:02:44]} Qxa7 {[%emt 0:01:50]} 37. Rxd6 {[%emt 0:01:31]} Qa5 {[%emt 0:04:05]} 38. Qd2 {[%emt 0:01:50]} Qb6 {[%emt 0:00:46]} 39. Qd4 {[%emt 0:01:49]} Rb8 {[%emt 0:00:01]} 40. h3 {[%emt 0:00:50]} Qa5 {[%emt 0:05:32]} 41. Kh2 {[%emt 0:01:59]} Nb3 {[%emt 0:01:16]} 42. Bxb3 {[%emt 0:01:41]} Rxb3 {[%emt 0:00:02]} 43. Rd8+ {[%emt 0:00:37]} Kh7 {[%emt 0:00:01]} 44. Qe4+ {[%emt 0:00:15]} g6 {[%emt 0:00:01]} 45. Rd7 {[%emt 0:00:15]} 1-0

[Event "22nd Trieste Masters Open 2020"]
[Site "Trieste"]
[Date "2020.09.02"]
[Round "6.3"]
[White "Brunello, Sabino"]
[Black "Brunello, Marina"]
[Result "1-0"]
[ECO "B91"]
[WhiteElo "2532"]
[BlackElo "2368"]
[Annotator "RC"]
[PlyCount "59"]
[EventDate "2020.08.31"]
[EventType "swiss"]
[EventCountry "ITA"]
[SourceTitle "playchess.com"]
[Source "ChessBase"]
[SourceQuality "1"]
[TimeControl "5400+30"]

1. e4 {[%emt 0:00:00]} c5 {[%emt 0:00:00]} 2. Nc3 {[%emt 0:00:00]} a6 {[%emt 0:00:00]} 3. Nge2 {[%emt 0:01:42]} d6 {[%emt 0:00:10]} 4. g3 {[%emt 0:00:53]} g6 {[%emt 0:00:05]} 5. Bg2 {[%emt 0:00:38]} Bg7 {[%emt 0:00:05]} 6. d4 {[%emt 0:00:06]} cxd4 {[%emt 0:00:46]} 7. Nxd4 {[%emt 0:00:02]} Nf6 {[%emt 0:02:06]} 8. O-O {[%emt 0:00:23]} O-O {[%emt 0:00:19]} 9. a4 {[%emt 0:01:35]} e5 {[%emt 0:02:26]} 10. Nde2 {[%emt 0:10:54]} Be6 {[%emt 0:03:09]} 11. b3 {[%emt 0:02:19]} Qc7 {[%emt 0:01:40]} 12. Ba3 {[%emt 0:04:51]} Rd8 {[%emt 0:00:05]} 13. Qd2 {[%emt 0:03:05]} Nc6 {[%emt 0:08:44]} 14. Nd5 {[%emt 0:10:15]} Bxd5 {[%emt 0:06:55]} 15. exd5 {[%emt 0:00:02]} Ne7 {[%emt 0:00:12]} 16. a5 {[%emt 0:00:35]} b5 {[%emt 0:14:59]} 17. axb6 {[%emt 0:09:17]} Qxb6 {[%emt 0:00:06]} 18. Nc3 {[%emt 0:08:37]} Nf5 {[%emt 0:11:39]} 19. Na4 {[%emt 0:13:02]} Qb5 {[%emt 0:14:40]} 20. Rab1 {[%emt 0:00:14]} Nd4 {[%emt 0:01:41]} 21. Qd1 {[%emt 0:00:17]} Rab8 {[%emt 0:04:36]} 22. c4 {[%emt 0:09:12]} Qd7 {[%emt 0:01:31]} 23. Bc1 {[%emt 0:07:14]} Qxa4 {[%emt 0:13:26]} 24. bxa4 {[%emt 0:01:03]} Rxb1 {[%emt 0:00:03]} 25. Qd3 {[%emt 0:03:06]} Rb3 {[%emt 0:00:45]} 26. Qd2 {[%emt 0:00:34]} Rc8 {[%emt 0:01:32]} 27. Qa5 {[%emt 0:00:47]} Rxc4 {[%emt 0:02:58]} 28. Qd8+ {[%emt 0:05:02]} Bf8 {[%emt 0:00:03]} 29. Bg5 {[%emt 0:00:35]} Rbc3 {[%emt 0:07:05]} 30. Bxf6 {[%emt 0:00:49]} 1-0

[Event "22nd Trieste Masters Open 2020"]
[Site "Trieste"]
[Date "2020.09.02"]
[Round "6.4"]
[White "Podetti, Davide"]
[Black "Jovanic, Ognjen"]
[Result "1/2-1/2"]
[ECO "B30"]
[WhiteElo "2173"]
[BlackElo "2526"]
[Annotator "RC"]
[PlyCount "148"]
[EventDate "2020.08.31"]
[EventType "swiss"]
[EventCountry "ITA"]
[SourceTitle "playchess.com"]
[Source "ChessBase"]
[SourceQuality "1"]
[TimeControl "5400+30"]

1. e4 {[%emt 0:00:00]} c5 {[%emt 0:00:09]} 2. Nf3 {[%emt 0:00:00]} Nc6 {[%emt 0:00:06]} 3. Bb5 {[%emt 0:00:12]} Nf6 {[%emt 0:00:17]} 4. e5 {[%emt 0:02:36]} Nd5 {[%emt 0:00:29]} 5. O-O {[%emt 0:01:05]} Nc7 {[%emt 0:03:07]} 6. Bxc6 {[%emt 0:01:09]} dxc6 {[%emt 0:00:03]} 7. h3 {[%emt 0:01:27]} Bf5 {[%emt 0:00:53]} 8. d3 {[%emt 0:01:12]} e6 {[%emt 0:01:52]} 9. Bg5 {[%emt 0:03:20]} Qd7 {[%emt 0:00:29]} 10. Nbd2 {[%emt 0:02:55]} h6 {[%emt 0:04:26]} 11. Bf4 {[%emt 0:02:27]} Nd5 {[%emt 0:03:19]} 12. Bg3 {[%emt 0:01:39]} Be7 {[%emt 0:03:34]} 13. Qe2 {[%emt 0:08:13]} Bg6 {[%emt 0:06:11]} 14. Bh4 {[%emt 0:07:29]} Bh5 {[%emt 0:08:12]} 15. Bxe7 {[%emt 0:00:39]} Qxe7 {[%emt 0:00:24]} 16. Ne4 {[%emt 0:00:39]} O-O {[%emt 1:04:29]} 17. c4 {[%emt 0:04:54]} Nf4 {[%emt 0:00:00]} 18. Qe3 {[%emt 0:01:09]} Bxf3 {[%emt 0:00:00]} 19. Qxf3 {[%emt 0:00:34]} Ng6 {[%emt 0:00:00]} 20. Qg3 {[%emt 0:01:20]} Rad8 {[%emt 0:00:00]} 21. f4 {[%emt 0:02:48]} b6 {[%emt 0:00:00]} 22. Nd6 {[%emt 0:14:13]} Kh7 {[%emt 0:00:00]} 23. Qf3 {[%emt 0:01:23]} f6 {[%emt 0:00:00]} 24. Qe4 {[%emt 0:00:43]} fxe5 {[%emt 0:00:00]} 25. fxe5 {[%emt 0:00:52]} Qh4 {[%emt 0:00:00]} 26. Qxh4 {[%emt 0:00:42]} Nxh4 {[%emt 0:00:00]} 27. Rxf8 {[%emt 0:00:33]} Rxf8 {[%emt 0:00:00]} 28. Rf1 {[%emt 0:00:36]} Kg8 {[%emt 0:00:00]} 29. Rxf8+ {[%emt 0:05:12]} Kxf8 {[%emt 0:00:00]} 30. Kf2 {[%emt 0:02:04]} Ng6 {[%emt 0:00:00]} 31. Ke3 {[%emt 0:01:06]} Nxe5 {[%emt 0:00:00]} 32. d4 {[%emt 0:00:20]} cxd4+ {[%emt 0:00:00]} 33. Kxd4 {[%emt 0:00:04]} Nd7 {[%emt 0:00:00]} 34. Nc8 {[%emt 0:04:50]} a6 {[%emt 0:00:00]} 35. c5 {[%emt 0:04:37]} bxc5+ {[%emt 0:00:00]} 36. Kc4 {[%emt 0:00:05]} e5 {[%emt 0:00:00]} 37. Na7 {[%emt 0:00:21]} Ke7 {[%emt 0:00:00]} 38. Nxc6+ {[%emt 0:00:57]} Kd6 {[%emt 0:00:00]} 39. Na5 {[%emt 0:00:26]} Nb6+ {[%emt 0:00:00]} 40. Kd3 {[%emt 0:00:16]} Kd5 {[%emt 0:00:00]} 41. b3 {[%emt 0:00:08]} h5 {[%emt 0:00:00]} 42. g3 {[%emt 0:01:59]} Nc8 {[%emt 0:00:00]} 43. Nc4 {[%emt 0:00:38]} Nd6 {[%emt 0:00:00]} 44. Nb6+ {[%emt 0:01:36]} Kc6 {[%emt 0:00:00]} 45. Na4 {[%emt 0:00:19]} g6 {[%emt 0:00:00]} 46. Nc3 {[%emt 0:00:45]} Nb5 {[%emt 0:00:00]} 47. Ne4 {[%emt 0:00:51]} Nc7 {[%emt 0:00:00]} 48. Kc4 {[%emt 0:01:08]} Nd5 {[%emt 0:00:00]} 49. a3 {[%emt 0:00:45]} Ne3+ {[%emt 0:00:00]} 50. Kd3 {[%emt 0:00:16]} Nf5 {[%emt 0:00:00]} 51. g4 {[%emt 0:03:34]} hxg4 {[%emt 0:00:00]} 52. hxg4 {[%emt 0:00:02]} Nd4 {[%emt 0:00:00]} 53. Kc4 {[%emt 0:01:15]} Nb5 {[%emt 0:00:00]} 54. Nf6 {[%emt 0:02:06]} Nxa3+ {[%emt 0:00:00]} 55. Kd3 {[%emt 0:00:03]} Nb5 {[%emt 0:00:00]} 56. Ke4 {[%emt 0:00:22]} Nd4 {[%emt 0:00:00]} 57. Kxe5 {[%emt 0:00:33]} Nxb3 {[%emt 0:00:00]} 58. Nd5 {[%emt 0:00:20]} a5 {[%emt 0:03:54]} 59. Nc3 {[%emt 0:02:01]} Nd4 {[%emt 0:02:28]} 60. Kf6 {[%emt 0:00:21]} Nb5 {[%emt 0:00:06]} 61. Na2 {[%emt 0:00:12]} Kd5 {[%emt 0:01:59]} 62. Kxg6 {[%emt 0:00:30]} Ke5 {[%emt 0:01:36]} 63. g5 {[%emt 0:00:30]} a4 {[%emt 0:00:18]} 64. Kf7 {[%emt 0:00:25]} a3 {[%emt 0:02:37]} 65. g6 {[%emt 0:00:27]} Nd6+ {[%emt 0:00:10]} 66. Ke7 {[%emt 0:00:16]} Nf5+ {[%emt 0:00:11]} 67. Kf7 {[%emt 0:00:33]} Nh4 {[%emt 0:01:48]} 68. g7 {[%emt 0:02:54]} Nf5 {[%emt 0:00:02]} 69. Nc3 {[%emt 0:00:53]} Kf4 {[%emt 0:01:22]} 70. Ke6 {[%emt 0:01:14]} Nxg7+ {[%emt 0:00:15]} 71. Kd5 {[%emt 0:00:02]} Ke3 {[%emt 0:04:37]} 72. Kxc5 {[%emt 0:00:06]} Kd3 {[%emt 0:00:32]} 73. Kb4 {[%emt 0:00:04]} Kc2 {[%emt 0:00:12]} 74. Kxa3 {[%emt 0:00:03]} Kxc3 {[%emt 0:06:53]} 1/2-1/2

[Event "22nd Trieste Masters Open 2020"]
[Site "Trieste"]
[Date "2020.09.04"]
[Round "8.5"]
[White "Podetti, Davide"]
[Black "Maerevoet, Sim"]
[Result "0-1"]
[ECO "B45"]
[WhiteElo "2173"]
[BlackElo "2379"]
[Annotator "RC"]
[PlyCount "64"]
[EventDate "2020.08.31"]
[EventType "swiss"]
[EventCountry "ITA"]
[SourceTitle "playchess.com"]
[Source "ChessBase"]
[SourceQuality "1"]
[TimeControl "5400+30"]

1. e4 {[%emt 0:00:00]} c5 {[%emt 0:00:00]} 2. Nf3 {[%emt 0:00:00]} e6 {[%emt 0:00:00]} 3. d4 {[%emt 0:00:00]} cxd4 {[%emt 0:00:01]} 4. Nxd4 {[%emt 0:00:00]} Nf6 {[%emt 0:00:08]} 5. Nc3 {[%emt 0:00:20]} Nc6 {[%emt 0:00:06]} 6. Be2 {[%emt 0:00:57]} Bb4 {[%emt 0:00:08]} 7. Nxc6 {[%emt 0:04:43]} bxc6 {[%emt 0:02:12]} 8. Qd3 {[%emt 0:05:48]} O-O {[%emt 0:12:10]} 9. Bd2 {[%emt 0:04:31]} d5 {[%emt 0:02:40]} 10. e5 {[%emt 0:09:09]} Nd7 {[%emt 0:12:18]} 11. f4 {[%emt 0:01:27]} Nc5 {[%emt 0:04:19]} 12. Qd4 {[%emt 0:03:00]} Qb6 {[%emt 0:01:33]} 13. a3 {[%emt 0:18:39]} Bxc3 {[%emt 0:00:15]} 14. Bxc3 {[%emt 0:00:40]} Ne4 {[%emt 0:00:58]} 15. Qxb6 {[%emt 0:01:19]} axb6 {[%emt 0:00:08]} 16. Bd4 {[%emt 0:00:31]} c5 {[%emt 0:01:43]} 17. Be3 {[%emt 0:00:40]} d4 {[%emt 0:10:27]} 18. Bf3 {[%emt 0:00:17]} dxe3 {[%emt 0:04:43]} 19. Bxe4 {[%emt 0:05:57]} Ra4 {[%emt 0:00:07]} 20. Bf3 {[%emt 0:00:51]} Rxf4 {[%emt 0:02:55]} 21. O-O-O {[%emt 0:00:03]} Rf5 {[%emt 0:03:39]} 22. Rd6 {[%emt 0:00:04]} Rxe5 {[%emt 0:02:25]} 23. Rxb6 {[%emt 0:00:04]} g5 {[%emt 0:04:24]} 24. a4 {[%emt 0:04:00]} f5 {[%emt 0:00:44]} 25. h3 {[%emt 0:00:53]} Kg7 {[%emt 0:11:43]} 26. b3 {[%emt 0:04:21]} h5 {[%emt 0:10:58]} 27. Bxh5 {[%emt 0:07:32]} g4 {[%emt 0:00:20]} 28. hxg4 {[%emt 0:00:08]} e2 {[%emt 0:00:07]} 29. Re1 {[%emt 0:00:30]} Kh6 {[%emt 0:00:08]} 30. Be8 {[%emt 0:04:26]} Rxe8 {[%emt 0:00:17]} 31. gxf5 {[%emt 0:00:02]} Kg5 {[%emt 0:00:54]} 32. fxe6 {[%emt 0:00:16]} Bxe6 {[%emt 0:00:29]} 0-1